fUSD/lending_fUSD_20250301
["ID","MTS","AMOUNT","RATE_DAILY","PERIOD"]
[355004693,1740862506801,-794963.22129143,0.00056,120]
[355004694,1740862506829,-4107.33,0.00056026,120]
[355004695,1740862506857,-3124.58,0.00056026,120]
[355004696,1740862506884,-3244.72,0.00056026,120]
[355004697,1740862506911,-777.33,0.00056027,30]
[355004698,1740862506938,-1554.66,0.00056027,30]
[355004699,1740862506965,-560.46,0.00056149,120]
[355004700,1740862506998,-500.0,0.00056164,120]
[355004701,1740862507036,-4107.55265071,0.000563,120]
[355004702,1740862507074,-3124.71231152,0.000563,120]
[355004703,1740862507111,-3244.91282215,0.000563,120]
[355004704,1740862507139,-500.0,0.000564,120]
[355004705,1740862507183,-560.46,0.00056423,120]
[355004706,1740862507224,-500.0,0.00056438,120]
[355004707,1740862507254,-1000000.0,0.000565,120]
[355004708,1740862507287,-163.78,0.000565,57]
[355004709,1740862507320,-163.78,0.000565,57]
[355004710,1740862507351,-163.78,0.000565,57]
[355004711,1740862507394,-163.78,0.000565,57]
[355004712,1740862507425,-163.78,0.000565,57]
[355004713,1740862507459,-163.78,0.000565,57]
[355004714,1740862507491,-163.78,0.000565,57]
[355004715,1740862507523,-163.78,0.000565,57]
[355004716,1740862507576,-163.78,0.000565,57]
[355004717,1740862507617,-163.78,0.000565,57]
[355004718,1740862507650,-163.78,0.000565,57]
[355004719,1740862507684,-163.78,0.000565,57]
[355004720,1740862507718,-163.78,0.000565,57]
[355004721,1740862507765,-163.78,0.000565,57]
[355004722,1740862507798,-163.78,0.000565,57]
[355004723,1740862507842,-163.78,0.000565,57]
[355004724,1740862507874,-163.78,0.000565,57]
[355004725,1740862507907,-163.78,0.000565,57]
[355004726,1740862508120,-163.78,0.000565,57]
[355004727,1740862508151,-163.78,0.000565,57]
[355004728,1740862508183,-163.78,0.000565,57]
[355004729,1740862508217,-163.78,0.000565,57]
[355004730,1740862508248,-163.78,0.000565,57]
[355004731,1740862508279,-163.78,0.000565,57]
[355004732,1740862508306,-434.87,0.000565,60]
[355004733,1740862508332,-560.46,0.00056696,120]
[355004734,1740862508357,-500.0,0.00056712,120]
[355004735,1740862508383,-1061.0,0.00056779,120]
[355004736,1740862508409,-1036.0,0.00056813,30]
[355004737,1740862508435,-2000.0,0.00056813,120]
[355004738,1740862508465,-313.07627,0.00056888,30]
[355004739,1740862508492,-1671.0,0.00056889,120]
[355004740,1740862508517,-1671.0,0.00056889,120]
[355004741,1740862508544,-1671.0,0.00056889,120]
[355004742,1740862508571,-560.53860616,0.0005697,120]
[355004743,1740862508596,-500.0,0.00056986,120]
[355004744,1740862508623,-777.33,0.00056986,30]
[355004745,1740862508649,-777.33,0.00056986,30]
[355004746,1740862508675,-777.33,0.00056986,30]
[355004747,1740862508701,-777.33,0.00056986,30]
[355004748,1740862508726,-777.33,0.00056986,30]
[355004749,1740862508752,-777.33,0.00056986,30]
[355004750,1740862508778,-777.33,0.00056986,30]
[355004751,1740862508805,-777.33,0.00056986,30]
[355004752,1740862508831,-777.33,0.00056986,30]
[355004753,1740862508857,-777.33,0.00056986,30]
[355004754,1740862508882,-470.81,0.00056986,30]
[355004755,1740862508908,-441.0,0.00056986,30]
[355004756,1740862508934,-5586.00086035,0.00057,120]
[355004757,1740862508961,-1000000.0,0.00057,120]
[355004758,1740862508988,-1000000.0,0.00057,120]
[355004759,1740862509014,-900.0,0.00057,58]
[355004760,1740862509041,-10000.0,0.00057,120]
[355004761,1740862509067,-151.0,0.00057,120]
[355004762,1740862509093,-151.0,0.00057068,120]
[355004763,1740862509119,-313.07627,0.00057088,30]
[355004764,1740862509144,-494.23723,0.0005716,94]
[355004765,1740862509172,-500.0,0.0005726,120]
[355004766,1740862509198,-313.07627,0.00057288,30]
[355004767,1740862509225,-1036.0,0.00057399,30]
[355004768,1740862509250,-150.0,0.0005748,30]
[355004769,1740862509277,-313.07627,0.00057488,30]
[355004770,1740862509305,-1000000.0,0.000575,120]
[355004771,1740862509331,-587.27119799,0.00057534,120]
[355004772,1740862509355,-500.0,0.00057534,120]
[355004773,1740862509380,-500.0,0.00057534,120]
[355004774,1740862509406,-500.0,0.00057534,120]
[355004775,1740862509431,-500.0,0.00057534,120]
[355004776,1740862509460,-500.0,0.00057534,120]
[355004777,1740862509487,-500.0,0.00057534,120]
[355004778,1740862509513,-500.0,0.00057534,120]
[355004779,1740862509540,-500.0,0.00057534,120]
[355004780,1740862509566,-500.0,0.00057534,120]
[355004781,1740862509593,-500.0,0.00057534,120]
[355004782,1740862509618,-500.0,0.00057534,120]
[355004783,1740862509650,-331.92099171,0.00057534,120]
[355004784,1740862509677,-2000.0,0.00057678,120]
[355004785,1740862509704,-313.07627,0.00057688,30]
[355004786,1740862509733,-100000.0,0.000578,53]
[355004787,1740862509760,-313.07627,0.00057888,30]
[355004788,1740862509786,-1671.0,0.00057889,120]
[355004789,1740862509814,-100000.0,0.000579,56]
[355004790,1740862509840,-1036.0,0.00057984,30]
[355004791,1740862509884,-1000.0,0.00058,120]
[355004792,1740862509910,-2000.0,0.00058,120]
[355004793,1740862509936,-1304.0,0.00058,120]
[355004794,1740862509962,-1000000.0,0.00058,120]
[355004795,1740862509986,-5000.0,0.00058,120]
[355004796,1740862510012,-1000000.0,0.00058,120]
[355004797,1740862510037,-229.98358631,0.00058,120]
[355004798,1740862510062,-900.0,0.00058,59]
[355004799,1740862510087,-151.0,0.00058,120]
[355004800,1740862510112,-313.07627,0.00058088,30]
[355004801,1740862510138,-160.75322,0.000581,120]
[355004802,1740862510162,-269.97432112,0.00058218,120]
[355004803,1740862510187,-313.07627,0.00058288,30]
[355004804,1740862510213,-150.0,0.00058391,120]
[355004805,1740862510239,-313.07627,0.00058488,30]
[355004806,1740862510264,-2000.0,0.00058544,120]
[355004807,1740862510290,-1036.0,0.0005857,30]
[355004808,1740862510316,-286.09434257,0.0005857,30]
[355004809,1740862510341,-3000.0,0.000586,90]
[355004810,1740862510366,-313.07627,0.00058688,30]
[355004811,1740862510391,-434.87,0.000587,60]
[355004812,1740862510416,-5000.0,0.0005879,30]
[355004813,1740862510441,-151.0,0.00058795,120]
[355004814,1740862510470,-1000000.0,0.000588,120]
[355004815,1740862510497,-313.07627,0.00058888,30]
[355004816,1740862510523,-1671.0,0.00058889,120]
[355004817,1740862510549,-1671.0,0.00058889,120]
[355004818,1740862510574,-1671.0,0.00058889,120]
[355004819,1740862510599,-1671.0,0.00058889,120]
[355004820,1740862510625,-1671.0,0.00058889,120]
[355004821,1740862510651,-1145.84611184,0.00058987,120]
[355004822,1740862510677,-50293.94741689,0.00058989,120]
[355004823,1740862510702,-1987.71595374,0.00058999,120]
[355004824,1740862510728,-834121.52814253,0.00059,120]
[355004825,1740862514591,-777.33,0.00056027,30]
[355004826,1740862514619,-165878.47185747,0.00059,120]
[355004827,1740862514646,-900.0,0.00059,60]
[355004828,1740862514674,-1000000.0,0.00059,120]
[355004829,1740862514701,-101075.0,0.00059,120]
[355004830,1740862514727,-151.0,0.00059,120]
[355004831,1740862514755,-313.07627,0.00059088,30]
[355004832,1740862514782,-476.58178845,0.000591,30]
[355004833,1740862514809,-1036.0,0.00059156,30]
[355004834,1740862514836,-150.35,0.00059178,30]
[355004835,1740862514862,-150.0,0.00059178,30]
[355004836,1740862514888,-150.0,0.00059178,30]
[355004837,1740862514915,-313.07627,0.00059288,30]
[355004838,1740862514940,-2000.0,0.00059409,120]
[355004839,1740862514967,-313.07627,0.00059488,30]
[355004840,1740862514996,-160.95791,0.000595,120]
[355004841,1740862515023,-494.23723,0.0005966,102]
[355004842,1740862515050,-313.07627,0.00059688,30]
[355004843,1740862515076,-1036.0,0.00059741,30]
[355004844,1740862515102,-851.13697737,0.00059885,120]
[355004845,1740862515128,-1671.0,0.00059889,120]
[355004846,1740862515155,-1671.0,0.00059889,120]
[355004847,1740862515183,-1671.0,0.00059889,120]
[355004848,1740862515211,-1671.0,0.00059889,120]
[355004849,1740862515239,-1671.0,0.00059889,120]
[355004850,1740862515267,-258.59,0.00059986,120]
[355004851,1740862515294,-661.19,0.00059986,120]
[355004852,1740862515321,-200.0,0.0006,120]
[355004853,1740862515346,-373.82,0.0006,120]
[355004854,1740862515373,-1000.0,0.0006,120]
[355004855,1740862515398,-2382.32572662,0.0006,120]
[355004856,1740862515424,-341.8487853,0.0006,120]
[355004857,1740862515451,-494.52123659,0.0006,120]
[355004858,1740862515476,-311.08291496,0.0006,120]
[355004859,1740862515501,-150.0,0.0006,30]
[355004860,1740862515526,-57138.4603472,0.0006,30]
[355004861,1740862515553,-687.61685505,0.0006,120]
[355004862,1740862515577,-35551.62222727,0.0006,30]
[355004863,1740862515602,-33355.6322749,0.0006,30]
[355004864,1740862515627,-1504.43145869,0.0006,60]
[355004865,1740862515653,-300.0,0.0006,120]
[355004866,1740862515680,-1000000.0,0.0006,120]
[355004867,1740862515705,-10000.0,0.0006,30]
[355004868,1740862515730,-109587.65877247,0.0006,120]
[355004869,1740862515756,-925.64932259,0.0006,120]
[355004870,1740862515785,-1000000.0,0.0006,120]
[355004871,1740862515810,-5953.35363682,0.0006,120]
[355004872,1740862515836,-314.71020765,0.0006,120]
[355004873,1740862515861,-25000.0,0.0006,120]
[355004874,1740862515887,-932.3424646,0.0006,60]
[355004875,1740862515913,-221.6,0.0006,120]
[355004876,1740862515938,-5000.0,0.0006,120]
[355004877,1740862515963,-2000.0,0.0006,60]
[355004878,1740862515988,-500.0,0.0006,120]
[355004879,1740862516014,-16368.08170798,0.0006,30]
[355004880,1740862516039,-1794.91168643,0.0006,113]
[355004881,1740862516065,-151.0,0.00060055,120]
[355004882,1740862516164,-313.07627,0.00060088,30]
[355004883,1740862516193,-1000.0,0.00060214,120]
[355005055,1740863432547,-181.92,0.00021918,2]
[355005056,1740863432557,-160.01001073,0.00026,2]
[355005066,1740863438126,-417.52338,0.00026,2]
[355005067,1740863438185,-375.46660927,0.00026,2]
[355005068,1740863438195,-171.87232616,0.00026,30]
[355005069,1740863438205,-271.55,0.000277,2]
[355005070,1740863438216,-336.11106457,0.00031985,120]
[355005071,1740863438244,-1398.82893543,0.00031985,120]
[355005072,1740863438254,-152.25524324,0.00032392,2]
[355005073,1740863438264,-1125.99066507,0.00032488,120]
[355005074,1740863438273,-150.0,0.00032488,2]
[355005075,1740863438283,-150.0,0.00032488,2]
[355005076,1740863438292,-150.0,0.00032488,2]
[355005077,1740863438302,-150.0,0.00032488,2]
[355005078,1740863438314,-150.0,0.00032488,2]
[355005079,1740863438323,-150.0,0.00032488,2]
[355005080,1740863438333,-250.0,0.00032488,2]
[355005081,1740863438343,-348.17192774,0.00032488,60]
[355005082,1740863438354,-1005.34720975,0.00032488,30]
[355005083,1740863438363,-1000.0,0.00032488,30]
[355005084,1740863438373,-61.17788187,0.00032488,30]
[355005085,1740863438386,-691.34196812,0.00032488,30]
[355005086,1740863438396,-439.74571602,0.000329,6]
[355005087,1740863438411,-1469.97280189,0.000329,6]
[355005089,1740863438421,-814.67,0.000331,7]
[355005091,1740863438431,-3076.46,0.000331,2]
[355005093,1740863438441,-150.99,0.000331,2]
[355005095,1740863438451,-7851.11657865,0.000331,2]
[355005301,1740863440539,-429.40756928,0.000331,2]
[355005716,1740863444516,-248.48174747,0.00032092,2]
[355005718,1740863444526,-677.27585207,0.000331,2]
[355005720,1740863444536,-159.306733,0.00033311,2]
[355005722,1740863444546,-519.175,0.00033452,2]
[355005724,1740863444556,-163.326,0.00033452,2]
[355005726,1740863444566,-150.0,0.00033452,2]
[355005728,1740863444575,-1009.0,0.00033452,2]
[355005730,1740863444584,-1523.43466746,0.00033969,6]
[355005732,1740863444596,-386.28385023,0.00033969,6]
[355005734,1740863444605,-1909.71851769,0.00035038,7]
[355005736,1740863444615,-749.64491798,0.00036107,7]
[355005882,1740863446206,-859.34526,0.00036107,7]
[355005895,1740863446317,-300.72833971,0.00036107,7]
[355005897,1740863446328,-1909.71851769,0.00037176,7]
[355005899,1740863446337,-187.50860677,0.000372,103]
[355005901,1740863446347,-135.34028524,0.00037338,2]
[355005916,1740863446483,-114.65971476,0.00037338,2]
[355005918,1740863446494,-152.25524323,0.00037515,2]
[355005920,1740863446504,-685.92014201,0.000378,2]
[355006228,1740864192631,250.0,0.00013,2]
[355006229,1740864193702,300.0,0.00015,2]
[355006230,1740864308827,10000.0,0.00015,2]
[355006231,1740864308855,10000.0,0.00015,2]
[355006232,1740864308882,10000.0,0.00015,2]
[355006233,1740864308908,10000.0,0.00015,2]
[355006234,1740864308940,4200.0,0.00015,2]
[355006235,1740864308967,10000.0,0.00015,2]
[355006236,1740864308996,10000.0,0.00015,2]
[355006237,1740864309024,10000.0,0.00015,2]
[355006238,1740864309055,10000.0,0.00015,2]
[355006239,1740864309082,10000.0,0.00015,2]
[355006240,1740864309110,10000.0,0.00015,2]
[355006301,1740864332798,239.52717329,0.0002,120]
[355006318,1740864363183,-10000.0,0.00015,2]
[355006319,1740864364079,-10000.0,0.00015,2]
[355006320,1740864364840,-10000.0,0.00015,2]
[355006321,1740864365504,-10000.0,0.00015,2]
[355006322,1740864365938,-10000.0,0.00015,2]
[355006323,1740864366445,-10000.0,0.00015,2]
[355006324,1740864367038,-10000.0,0.00015,2]
[355006325,1740864367345,-10000.0,0.00015,2]
[355006326,1740864367731,-10000.0,0.00015,2]
[355006327,1740864368023,-10000.0,0.00015,2]
[355006328,1740864368334,-10000.0,0.00015,2]
[355006329,1740864368952,-10000.0,0.00015,2]
[355006330,1740864369354,-10000.0,0.00015,2]
[355006331,1740864369588,-10000.0,0.00015,2]
[355006332,1740864369897,-10000.0,0.00015,2]
[355006333,1740864370198,-10000.0,0.00015,2]
[355006334,1740864370492,-10000.0,0.00015,2]
[355006335,1740864371114,-10000.0,0.00015,2]
[355006336,1740864371660,-10000.0,0.00015,2]
[355006337,1740864372263,-10000.0,0.00015,2]
[355006338,1740864372591,-10000.0,0.00015,2]
[355006339,1740864374014,-10000.0,0.00015,2]
[355006340,1740864374231,-10000.0,0.00015,2]
[355006341,1740864376753,-10000.0,0.00015,2]
[355006344,1740864379713,-10000.0,0.00015,2]
[355006345,1740864380240,-10000.0,0.00015,2]
[355006346,1740864380750,-10000.0,0.00015,2]
[355006347,1740864381286,-10000.0,0.00015,2]
[355006348,1740864381800,-10000.0,0.00015,2]
[355006349,1740864382278,-10000.0,0.00015,2]
[355006350,1740864382697,-10000.0,0.00015,2]
[355006351,1740864383172,-10000.0,0.00015,2]
[355006352,1740864383605,-10000.0,0.00015,2]
[355006353,1740864384074,-10000.0,0.00015,2]
[355006354,1740864384465,-10000.0,0.00015,2]
[355006355,1740864384889,-10000.0,0.00015,2]
[355006356,1740864385212,-10000.0,0.00015,2]
[355006357,1740864385565,-10000.0,0.00015,2]
[355006358,1740864385865,-10000.0,0.00015,2]
[355006359,1740864386194,-10000.0,0.00015,2]
[355006360,1740864386576,-10000.0,0.00015,2]
[355006361,1740864386887,-10000.0,0.00015,2]
[355006362,1740864387231,-10000.0,0.00015,2]
[355006363,1740864387565,-10000.0,0.00015,2]
[355006364,1740864387871,-10000.0,0.00015,2]
[355006365,1740864388206,-10000.0,0.00015,2]
[355006366,1740864388555,-10000.0,0.00015,2]
[355006367,1740864388989,-10000.0,0.00015,2]
[355006368,1740864389459,-10000.0,0.00015,2]
[355006369,1740864389989,-10000.0,0.00015,2]
[355006370,1740864390201,-10000.0,0.00015,2]
[355006371,1740864390534,-10000.0,0.00015,2]
[355006372,1740864390832,-10000.0,0.00015,2]
[355006373,1740864391154,-10000.0,0.00015,2]
[355006374,1740864391490,-10000.0,0.00015,2]
[355006375,1740864391955,-10000.0,0.00015,2]
[355006376,1740864392320,-10000.0,0.00015,2]
[355006377,1740864392824,-10000.0,0.00015,2]
[355006378,1740864393159,-10000.0,0.00015,2]
[355006379,1740864393480,-500.0,0.00014999,2]
[355006380,1740864393506,-207.22970285,0.00014999,2]
[355006381,1740864393535,-9292.77029715,0.00015,2]
[355006382,1740864393806,-10000.0,0.00015,2]
[355006383,1740864394151,-10000.0,0.00015,2]
[355006384,1740864394756,-10000.0,0.00015,2]
[355006385,1740864395162,-10000.0,0.00015,2]
[355006386,1740864395803,-10000.0,0.00015,2]
[355006387,1740864396273,-10000.0,0.00015,2]
[355006388,1740864396507,-10000.0,0.00015,2]
[355006389,1740864397674,-10000.0,0.00015,2]
[355006390,1740864398097,-10000.0,0.00015,2]
[355006391,1740864398161,-10000.0,0.00015,2]
[355006392,1740864398245,-10000.0,0.00015,2]
[355006393,1740864398688,-10000.0,0.00015,2]
[355006394,1740864398957,-10000.0,0.00015,2]
[355006395,1740864399034,-10000.0,0.00015,2]
[355006396,1740864399753,-10000.0,0.00015,2]
[355006397,1740864400193,-10000.0,0.00015,2]
[355006398,1740864400605,-10000.0,0.00015,2]
[355006399,1740864401105,-10000.0,0.00015,2]
[355006400,1740864401588,-10000.0,0.00015,2]
[355006401,1740864402866,-10000.0,0.00015,2]
[355006402,1740864403335,-10000.0,0.00015,2]
[355006403,1740864404770,-10000.0,0.00015,2]
[355006404,1740864405278,-10000.0,0.00015,2]
[355006405,1740864405748,-10000.0,0.00015,2]
[355006406,1740864406197,-10000.0,0.00015,2]
[355006407,1740864407095,-10000.0,0.00015,2]
[355006408,1740864407875,-10000.0,0.00015,2]
[355006409,1740864408756,-10000.0,0.00015,2]
[355006410,1740864409710,-10000.0,0.00015,2]
[355006411,1740864410397,-10000.0,0.00015,2]
[355006412,1740864411390,-10000.0,0.00015,2]
[355006413,1740864412133,-10000.0,0.00015,2]
[355006414,1740864412973,-10000.0,0.00015,2]
[355006415,1740864414906,-10000.0,0.00015,2]
[355006416,1740864422314,-1469.0,0.00015,2]
[355006421,1740864469671,2347.16688985,0.0002,120]
[355006425,1740864510142,1228.88694437,0.00015146,15]
[355006427,1740864521648,-152.25524323,0.000149,2]
[355006429,1740864521689,-3626.52949761,0.000149,2]
[355006543,1740864596674,-356.20358785,0.000149,2]
[355006548,1740864632729,-216.77281454,0.000149,2]
[355006549,1740864632739,-46.62845414,0.000149,2]
[355006550,1740864632751,-267.012,0.000149,2]
[355006711,1740864640472,-9.41439757,0.000149,2]
[355006713,1740864640483,-427.131,0.000149,2]
[355006715,1740864640492,-272.1937,0.000149,2]
[355006717,1740864640502,-643.05819419,0.00014973,2]
[355006719,1740864640511,-434.20792984,0.00014973,2]
[355006734,1740864640647,-445.57,0.00014973,2]
[355007339,1740864646612,-8800.24715965,0.00014973,2]
[355007341,1740864646622,-300.0,0.00014999,2]
[355007343,1740864646631,-150.0,0.00014999,2]
[355007345,1740864646642,-7136.08318638,0.00015,2]
[355007348,1740864646673,-708.91030567,0.00015,2]
[355007361,1740864646798,-14322.0,0.00015,2]
[355009286,1740865110479,1335.499,0.000147,2]
[355009287,1740865110766,199.893,0.000147,2]
[355009288,1740865271294,629.29883,0.0001485,2]
[355009289,1740865369295,392.33474166,0.00014753,2]
[355009290,1740865526351,-13929.6298,0.000149,2]
[355009291,1740865526376,-6242.8898,0.000149,2]
[355009292,1740865526401,-2457.9129,0.000149,2]
[355009293,1740865526427,-3047.12461913,0.000149,2]
[355009294,1740865526457,-164.07222593,0.000149,2]
[355009295,1740865526483,-6548.2147681,0.000149,2]
[355009296,1740865526511,-150.0,0.0001495,2]
[355009297,1740865526542,-17460.15588684,0.00015,2]
[355009298,1740865527898,-50000.0,0.00015,2]
[355009299,1740865528951,-50000.0,0.00015,2]
[355009300,1740865529893,-50000.0,0.00015,2]
[355009301,1740865530963,-50000.0,0.00015,2]
[355009302,1740865535919,-20000.0,0.00015,2]
[355009303,1740865556747,-323.0548517,0.000149,2]
[355009304,1740865556929,-49676.9451483,0.00015,2]
[355009305,1740865557903,-50000.0,0.00015,2]
[355009306,1740865559084,-50000.0,0.00015,2]
[355009307,1740865560186,-50000.0,0.00015,2]
[355009308,1740865580690,-13632.726,0.000149,2]
[355009309,1740865580718,-6367.274,0.00015,2]
[355009310,1740865603874,-23000.0,0.00015,2]
[355009316,1740865663565,339.21677158,0.000148,2]
[355009317,1740865667629,200.0,0.00014726,2]
[355009326,1740865759670,1948.16167554,0.000148,2]
[355009331,1740865773997,222.13774929,0.000148,2]
[355009332,1740865786172,-3056.32223766,0.000149,2]
[355009333,1740865786226,-1743.76882712,0.000149,2]
[355009334,1740865786279,-101.3456309,0.000149,2]
[355009340,1740865831668,-242.59296511,0.000149,2]
[355009341,1740865831677,-30.21671361,0.00015,2]
[355009342,1740865831768,-350088.41055041,0.00015,2]
[355009343,1740865831781,-41557.35314684,0.00015,2]
[355009344,1740865831943,-429.64,0.00015,2]
[355009392,1740865837676,-937.36225284,0.00015,2]
[355009393,1740865837688,-2770.61634336,0.00015,2]
[355009545,1740865840036,-2543.25618646,0.00015,2]
[355009548,1740865840055,-1398.74017312,0.00015,2]
[355009555,1740865840126,-3367.8222,0.00015,2]
[355010145,1740865845735,-4307.4978,0.00015,2]
[355010154,1740865845820,-1155.21599364,0.00015,2]
[355010172,1740865845994,-2501.2324836,0.00015,2]
[355010179,1740865846055,-6975.78969852,0.00015,2]
[355011567,1740865916134,433.11601825,0.00014633,2]
[355011568,1740865960444,150.54236467,0.00015,20]
[355011569,1740866000420,250.0,0.00013,2]
[355011570,1740866356296,481.37008838,0.00014851,2]
[355011571,1740866462562,433.11601825,0.00014615,2]
[355011572,1740866500218,-20401.4295,0.000149,2]
[355011573,1740866500246,-14598.5705,0.00015,2]
[355011574,1740866548841,500.0,0.000202,120]
[355011575,1740866584901,2020.0,0.0002,120]
[355011576,1740866588810,500.0,0.000202,120]
[355011577,1740866624591,524.41569,0.0001485,2]
[355011602,1740867031988,-2853.50370972,0.00015,2]
[355011603,1740867032112,-11556.02017621,0.00015,2]
[355011604,1740867032124,-5539.61599745,0.00015,2]
[355011605,1740867032136,-259.23236,0.00015,2]
[355011606,1740867032243,-3155.48306075,0.00015,2]
[355011607,1740867032255,-669.57322681,0.00015,2]
[355011608,1740867032283,-7393.74505973,0.00015,2]
[355011609,1740867032293,-2894.93275545,0.00015,2]
[355011610,1740867032320,-880.53352,0.00015,2]
[355011611,1740867032332,-1137.90000001,0.00015,2]
[355011612,1740867032367,-9587.5,0.00015,2]
[355011613,1740867032379,-298.86,0.00015,2]
[355011633,1740867037768,-1335.22,0.00015,2]
[355011634,1740867037779,-2758.10861982,0.00015,2]
[355011635,1740867037790,-4318.55,0.00015,2]
[355011636,1740867037807,-1689.16,0.00015,2]
[355011637,1740867037913,-467.67054885,0.00015,2]
[355011638,1740867038028,-14945.14720286,0.00015,2]
[355011639,1740867038144,327.67523508,0.00014525,2]
[355011838,1740867040129,-2500.0,0.00015,2]
[355011858,1740867040313,-34039.56227321,0.00015,2]
[355011860,1740867040323,-162.37120242,0.00015,2]
[355011862,1740867040332,-300.0,0.00015,2]
[355011864,1740867040342,-437.01308,0.00015,2]
[355011866,1740867040352,-630.0,0.000151,2]
[355011868,1740867040362,-297.0,0.000151,2]
[355011870,1740867040371,-173.0,0.00016067,2]
[355011872,1740867040381,-150.0,0.0001639,2]
[355011874,1740867040390,-150.0,0.0001639,2]
[355011876,1740867040400,-450.0,0.0001639,2]
[355011878,1740867040410,-350.0,0.00017,2]
[355011880,1740867040419,-1793.61263259,0.000174,2]
[355011882,1740867040429,-1793.61263254,0.000174,2]
[355011884,1740867040439,-962.11,0.00017608,2]
[355011886,1740867040448,-1866.36347775,0.00018,2]
[355011888,1740867040459,-1606.26945809,0.00018866,2]
[355011890,1740867040471,-187.34317445,0.00018866,2]
[355011892,1740867040490,-400.0,0.00019,2]
[355011894,1740867040500,-250.0,0.00019592,2]
[355011896,1740867040510,-227.98,0.00019622,2]
[355011898,1740867040519,-200.0,0.00019699,2]
[355011900,1740867040530,-234.21,0.00019703,2]
[355011902,1740867040540,-654.22231782,0.00019872,2]
[355011904,1740867040551,-307.88768218,0.00019872,2]
[355011906,1740867040561,-437.01308,0.0002,2]
[355011908,1740867040571,-623.93132229,0.00020085,2]
[355011911,1740867040583,-376.06867771,0.00020085,2]
[355011913,1740867040592,-192.9028213,0.00020125,2]
[355012216,1740867043100,-534.23575499,0.00020125,2]
[355012218,1740867043110,-625.78029305,0.00020125,2]
[355012220,1740867043120,-690.99,0.00020142,2]
[355012222,1740867043129,-150.0,0.00020142,7]
[355012224,1740867043138,-386.39397039,0.00020162,2]
[355012474,1740867045967,-389.40793915,0.00020162,2]
[355012476,1740867045980,-612.65471877,0.00020162,2]
[355012479,1740867045992,-611.54337169,0.00020162,2]
[355012481,1740867046004,-1614.12867131,0.00020239,2]
[355012492,1740867046111,-321.68456579,0.00020239,2]
[355012495,1740867046123,-1266.99745713,0.00020239,2]
[355012497,1740867046135,-550.8250026,0.00020239,2]
[355013156,1740867812474,250.0,0.00013,2]
[355013159,1740867920559,4759.00341792,9e-05,2]
[355013161,1740867936852,8929.94892043,8e-05,2]
[355013162,1740867967022,8234.36629298,8e-05,2]
[355013169,1740868036343,205.0,9.8e-05,2]
[355013170,1740868040354,5128.61271458,0.0001305,2]
[355013171,1740868040951,249.52889688,0.000101,2]
[355013172,1740868073493,4247.35734569,0.00013,2]
[355013173,1740868076173,116178.95924001,0.000139,2]
[355013174,1740868082513,31823.79516387,0.00014,2]
[355013188,1740868144151,-163.6882576,0.000149,2]
[355013190,1740868144200,-2553.16718191,0.000149,2]
[355013340,1740868169014,-253.33365758,0.000149,2]